Cogmind - Beta 16 @@@ ROGUE MODE // 2025.10.22 @ 12:40:48 Player: DrZettl Result: Destroyed by as-20576 with Assembled Heavy Rifle Performance ------------- Evolutions (0) 0 Regions Visited (2) 400 Robots Destroyed (10) 50 Value Destroyed (306) 306 Prototype IDs (0) 0 Alien Tech Used (0) 0 Bonus (-11) -11 TOTAL SCORE: 745 Bonus ------- Friendly Fire -11 Cogmind --------- Core Integrity 0/250 Matter 286/300 Energy 125/125 System Corruption 0% Temperature Cool (0) Movement Rolling (130) Ox2 Location -10/Mines Parts ------- > --- POWER (1) -------- Light Ion Engine > --- PROPULSION (2) --- Compact Wheel > --- UTILITY (2) ------ High-capacity Storage Unit Seismic Detector > --- WEAPON (2) ------- Light Assault Rifle Light Cannon > --- INVENTORY (20) --- Ion Engine Ion Engine Aluminum Leg Aluminum Leg Aluminum Leg Aluminum Leg Aluminum Leg Signal Interpreter Targeting Computer Core Shielding Medium Laser Small Laser Light Assault Rifle Light Cannon Light Cannon Light Cannon Light Cannon Light Cannon Light Cannon Datajack Peak State ------------ > --- POWER ------------ Light Ion Engine > --- PROPULSION ------- Wheel Compact Wheel > --- UTILITY ---------- High-capacity Storage Unit Seismic Detector > --- WEAPON ----------- Light Assault Rifle Light Cannon > --- INVENTORY -------- Ion Engine Ion Engine Aluminum Leg Aluminum Leg Aluminum Leg Aluminum Leg Aluminum Leg Signal Interpreter Targeting Computer Core Shielding Medium Laser Small Laser Light Assault Rifle Light Cannon Light Cannon Light Cannon Light Cannon Light Cannon Light Cannon Datajack [Rating: 9] Favorites ----------- Power Light Ion Engine Engine Light Ion Engine Propulsion Wheel Wheel Wheel Utility Seismic Detector Device Seismic Detector Storage High-capacity Storage Unit Weapon Assault Rifle Energy Gun Medium Laser Ballistic Gun Assault Rifle Ballistic Cannon Light Cannon Build | -11 -10 -10 ------- Run | Yrd Mat Min Slots Evolved . | . . . Power . | . . . Propulsion . | . . . Utility . | . . . Weapon . | . . . Parts Attached 13 | 7 3 3 Power 1 | 1 . . Engine 1 | 1 . . Core . | . . . Reactor . | . . . Propulsion 5 | 2 1 2 Treads . | . . . Leg . | . . . Wheel 5 | 2 1 2 Hover . | . . . Flight . | . . . Utility 3 | 2 1 . Device 1 | 1 . . Storage 2 | 1 1 . Processor . | . . . Hackware . | . . . Protection . | . . . Artifact . | . . . Weapon 4 | 2 1 1 Energy Gun 1 | 1 . . Energy Cannon . | . . . Ballistic Gun 2 | 1 1 . Ballistic Cannon 1 | . . 1 Launcher . | . . . Special Weapon . | . . . Impact Weapon . | . . . Slashing Weapon . | . . . Piercing Weapon . | . . . Special Melee Weapon . | . . . Unidentified Prototypes . | . . . Parts Lost 5 | . 1 4 Power . | . . . Propulsion 4 | . 1 3 Utility . | . . . Weapon 1 | . . 1 Highest Loss Streak 2 | . 1 2 To Critical Strikes . | . . . Average Backups 14 | 3 13 18 Power 1 | . 1 1 Propulsion 3 | 1 4 4 Utility 1 | . . 1 Weapon 7 | 1 7 9 Tool/Special . | . . . Unused Backups 19 | . . 19 Power 2 | . . 2 Propulsion 5 | . . 5 Utility 3 | . . 3 Weapon 8 | . . 8 Tool/Special 1 | . . 1 Average Slot Usage (%) 98 | . 98 98 Engine 14 | . 14 14 Wheel 26 | . 26 26 Device 14 | . 14 14 Storage 14 | . 14 14 Energy Gun 4 | . 7 . Ballistic Gun 19 | . 20 17 Ballistic Cannon 4 | . . 10 Peak Build Rating 9 | 7 8 9 Average Rating 7 | 4 7 8 On Entrance 5 | . 7 8 Avg Prop Armor Cover (%) . | . . . Naked Turns . | . . . Heaviest Build 48 | 13 48 48 Greatest Support 26 | 26 26 26 Greatest Overweight (x) 4 | 1 2 4 Average Overweight (x) . | . . 1 Largest Inventory Capacity 20 | 8 20 20 Average Capacity 17 | 7 18 20 Most Carried 20 | 6 17 20 Average Carried 14 | 4 14 18 Final Capacity 20 | 8 20 20 Final Carried 20 | 6 17 20 Class Distribution -------------------- 100% | Mutant Dominant Class ---------------- Mutant | -10/Materials Mutant | -10/Mines Resources | -11 -10 -10 ----------- Run | Yrd Mat Min Matter Collected 438 | 209 55 174 Remotely . | . . . Salvage Created 425 | 76 87 262 Parts 19 | 5 5 9 Haulers Intercepted . | . . . Recyclers Shooed . | . . . Parts Field Recycled . | . . . Retrieved Matter . | . . . Parts Self-Destructed . | . . . Prevented . | . . . Parts Restored . | . . . Kills | -11 -10 -10 ------- Run | Yrd Mat Min Combat Hostiles Destroyed 9 | . 2 7 Guns 6 | . 2 4 Cannons 3 | . . 3 Classes Destroyed 5 | 2 1 2 Tunneler 2 | 1 . 1 Recycler 1 | 1 . . Grunt 5 | . 2 3 Sentry 2 | . . 2 Assembled 2 | . . 2 Best Kill Streak 3 | 2 2 3 Combat Bots Only 2 | . 2 2 Max Kills in Single Turn 1 | 1 1 1 Gunslinging . | . . . Exploded . | . . . Melee . | . . . Uniques/NPCs Destroyed . | . . . Combat | -11 -10 -10 -------- Run | Yrd Mat Min Hostile Shots Fired 72 | . 17 55 Missed 15 | . . 15 Hits 57 | . 17 40 Melee 1 | . . 1 Projectile 56 | . 17 39 Critical Strikes 2 | . . 2 Part Disruptions 1 | . . 1 Damage Taken 813 | . 261 552 Core 259 | . 83 176 Absorbed by Shields . | . . . Core Remaining (%) 100 | 100 . . Volleys Fired 44 | 6 10 28 Largest 2 | 2 2 2 Hottest 70 | 70 70 50 Shots Fired 79 | 12 20 47 Gun 65 | 12 20 33 Cannon 14 | . . 14 Launcher . | . . . Special . | . . . Kinetic 63 | 6 10 47 Thermal 16 | 6 10 . Explosive . | . . . Electromagnetic . | . . . Robot Hit Streak 12 | 3 6 12 Robot Miss Streak 3 | 3 2 3 Penetration Max . | . . . Secondary Targets 1 | . . 1 Max Gunslinging Chain 1 | . . 1 Shots Hit Robots 51 | 6 14 31 Core Hits 23 | 3 4 16 Critical Kills . | . . . Critical Parts Destroyed . | . . . Critical Strikes . | . . . Melee Attacks . | . . . Impact . | . . . Slashing . | . . . Piercing . | . . . Sneak Attacks . | . . . Combat Hostiles . | . . . Follow-up Attacks . | . . . Damage Inflicted 639 | 67 191 381 Guns 457 | 67 191 199 Cannons 177 | . . 177 Explosions . | . . . Melee . | . . . Ramming 5 | . . 5 Kinetic 509 | 30 103 376 Thermal 125 | 37 88 . Explosive . | . . . Electromagnetic . | . . . Impact . | . . . Slashing . | . . . Piercing . | . . . Highest Corruption . | . . . Average Corruption . | . . . Corruption Purged . | . . . Corruption Blocked . | . . . Overload Shots . | . . . Overflow Damage . | . . . Projectiles . | . . . Explosions . | . . . Melee . | . . . Knockbacks 2 | . . 2 Impact 1 | . . 1 Kinetic 1 | . . 1 Secondary . | . . . Self-Inflicted Damage 2 | . . 2 Shots . | . . . Rammed 1 | . . 1 Targets Rammed 1 | . . 1 Kicked . | . . . Crushed . | . . . Highest Temperature 214 | 36 214 52 Average Temperature 54 | 16 113 18 Received Heat Transfer 431 | . 144 287 Siege Activations . | . . . Martial Activations . | . . . Shielding Activations . | . . . Robots Disrupted . | . . . Combat Hostiles . | . . . Robots Corrupted . | . . . Combat Hostiles . | . . . Parts Fried . | . . . Impact Corruptions . | . . . Robots Melted . | . . . Combat Hostiles . | . . . Parts Melted . | . . . Heat Transferred 370 | 111 259 . Parts Sabotaged . | . . . Parts Stolen . | . . . Parts Stripped . | . . . Power Chain Reactions . | . . . Alert | -11 -10 -10 ------- Run | Yrd Mat Min Maximum Alert Level . | . . . Low Security (%) 100 | 100 100 100 Level 1 . | . . . Level 2 . | . . . Level 3 . | . . . Level 4 . | . . . Level 5 . | . . . High Security . | . . . Max Security . | . . . Peak Influence 50 | 5 50 45 Initial . | . . . Average 10 | 1 7 16 Influence Increases 190 | 10 65 115 Destroy 0b10 Robot/C 140 | . 40 100 Destroy 0b10 Robot/NC 15 | 10 . 5 Destroy Leader 20 | . 10 10 Successful Hack 15 | . 15 . Influence Decreases 190 | 10 65 115 Time Decay 180 | 10 65 105 Lost Part 10 | . . 10 Squads Dispatched 2 | . 2 . Investigation 2 | . 2 . Extermination . | . . . Reinforcement . | . . . Assault . | . . . Garrison . | . . . Intercept . | . . . Searches Triggered . | . . . Construction Impeded . | . . . Haulers Reinforced . | . . . Active Scanning Responses . | . . . Cargo Convoy Interrupts . | . . . Stealth | -11 -10 -10 --------- Run | Yrd Mat Min Distress Signals 1 | . 1 . Communications Jammed . | . . . Distress Signals . | . . . Times Spotted 17 | . 5 12 Peak Tracking Total 4 | . 4 4 Tactical Retreats 1 | . . 1 Traps | -11 -10 -10 ------- Run | Yrd Mat Min Traps Triggered 1 | . 1 . Indirectly . | . . . Trap Hack Attempts . | . . . Triggered . | . . . Disarmed . | . . . Reprogrammed . | . . . Reused . | . . . Traps Extracted . | . . . Installed . | . . . Triggered . | . . . Machines | -11 -10 -10 ---------- Run | Yrd Mat Min Machines Disabled . | . . . Max in Single Turn . | . . . Machines Repaired . | . . . Machines Dismantled . | . . . Machines Sabotaged . | . . . Overloaded Fab Kills . | . . . Hacking | -11 -10 -10 --------- Run | Yrd Mat Min Machines Accessed 5 | . 5 . Terminals 3 | . 3 . Fabricators . | . . . Repair Stations . | . . . Recycling Units 2 | . 2 . Scanalyzers . | . . . Garrison Access . | . . . Total Hacks 12 | . 12 . Successful 10 | . 10 . Failed 2 | . 2 . Catastrophic . | . . . Database Lockouts . | . . . Manual 4 | . 4 . Terminals 7 | . 7 . Fabricators . | . . . Repair Stations . | . . . Recycling Units 5 | . 5 . Scanalyzers . | . . . Garrison Access . | . . . Terminal Hacks 3 | . 3 . Branch Access Points 1 | . 1 . Zone Layout 2 | . 2 . Fabricator Hacks . | . . . Repair Station Hacks . | . . . Recycling Unit Hacks 4 | . 4 . Process 1 | . 1 . Report Inventory 3 | . 3 . Scanalyzer . | . . . Garrison Access Hacks . | . . . Unauthorized Hacks 3 | . 3 . Terminals 3 | . 3 . Track 1 | . 1 . Botnet 2 | . 2 . Fabricators . | . . . Repair Stations . | . . . Recycling Units . | . . . Scanalyzers . | . . . Garrison Access . | . . . Data Cores Recovered . | . . . Used . | . . . Hacking Detections 2 | . 2 . Full Trace Events 1 | . 1 . Feedback Events . | . . . Feedback Blocked . | . . . Robot Schematics Acquired . | . . . Robots Built . | . . . Authchips . | . . . Time . | . . . Total Robot Build Rating . | . . . Part Schematics Acquired . | . . . Parts Built . | . . . Authchips . | . . . Time . | . . . Total Part Build Rating . | . . . Part Studies Acquired . | . . . Parts Repaired . | . . . Time . | . . . Parts Recycled . | . . . Recycled Matter 123 | . 123 . Retrieved Matter . | . . . Retrieved Components . | . . . Parts Scanalyzed . | . . . Part Schematics Acquired . | . . . Parts Damaged . | . . . Bothacking | -11 -10 -10 ------------ Run | Yrd Mat Min Used RIF Installer . | . . . Robots Hacked . | . . . Non-combat . | . . . Combat . | . . . Robot Hacks Applied . | . . . Relay Couplers Released . | . . . Fabnet Peak Effective % . | . . . Robots Rewired . | . . . Allies Hacked . | . . . Hacks Repelled . | . . . Allies | -11 -10 -10 -------- Run | Yrd Mat Min Total Allies 1 | . . 1 Largest Group 1 | . . 1 Highest-Rated Group 31 | . . 31 Highest-Rated Ally 31 | . . 31 Total Orders . | . . . Ally Attacks 3 | . . 3 Total Damage 62 | . . 62 Kills . | . . . Allies Corrupted . | . . . Allies Melted . | . . . Intel | -11 -10 -10 ------- Run | Yrd Mat Min Active Infowar (turns) 612 | 9 348 255 Seismic 612 | 9 348 255 Robot Analysis Total . | . . . Derelict Logs Recovered . | . . . Drone Launches . | . . . Drone Recoveries . | . . . Exploration | -11 -10 -10 ------------- Run | Yrd Mat Min Turns Passed 687 | 84 348 255 Spaces Moved 461 | 55 254 152 Core 3 | 3 . . Treads . | . . . Legs . | . . . Wheels 458 | 52 254 152 Hover . | . . . Flight . | . . . Fastest Speed 50 | 50 90 105 Average Speed 103 | 88 104 108 Slowest Speed 140 | 100 130 140 Overloaded Moves . | . . . Propulsion Burnouts . | . . . Robots Hopped . | . . . Potential Cave-ins . | . . . Cave-ins Triggered . | . . . Exploration Rate (%) 26 | 4 47 27 Regions Visited 2 Branch Regions 1 Pre-discovered Areas 1 | . . 1 Known Exits Taken 1 | . 1 . Unknown Exits Taken 1 | 1 . . Scrap Searched . | . . . Spaces Dug . | . . . Terrain Destroyed . | . . . Melee . | . . . Projectile . | . . . AOE . | . . . Terrain Rammed . | . . . Walls Destroyed . | . . . Machines Disabled . | . . . Actions | -11 -10 -10 --------- Run | Yrd Mat Min Total 592 | 75 316 201 Wait 49 | . 38 11 Move 459 | 54 253 152 Hop . | . . . Pick Up 24 | 8 10 6 Fast Attach 7 | 5 2 . Attach 5 | 2 . 3 Detach 1 | . 1 . Swap 1 | . 1 . Drop 1 | . 1 . Fire 44 | 6 10 28 Melee . | . . . Ram 1 | . . 1 Kick . | . . . Crush . | . . . Escape Stasis . | . . . Rewire . | . . . Trap . | . . . Miscellaneous . | . . . Route ------- -11/Scrapyard -10/Materials (discovered 2 exits: [*Mat] / *Min) -10/Mines History --------- Turn | Location | Event 11 | -11/Scrapyard | Discovered new exit (range 16) 85 | -11/Scrapyard | Entered Materials 142 | -10/Materials | Identified exit to Mines 317 | -10/Materials | Build established: Mutant 323 | -10/Materials | Discovered new exit (range 8) 433 | -10/Materials | Entered Mines 444 | -10/Mines | Escorted by a lone wolf Derelict 464 | -10/Mines | Learned location of Storage (-8) 562 | -10/Mines | Core integrity fell below 50% 615 | -10/Mines | Assembled infested the area 667 | -10/Mines | Core integrity fell below 20% 688 | -10/Mines | Destroyed by as-20576 with Assembled Heavy Rifle Last Messages --------------- 00541_ K-01 Serf collects debris. 00552_ Slammed into K-01 Serf. 00552_ K-01 Serf knocked back. 00568_ Critical hit (Burn: +37). 00569_ Y-45 Defender destroyed. 00580_ Critical hit (Burn: +37). 00580_ Y-45 Defender destroyed. 00584_ T-07 Excavator destroyed. 00586_ Acquired 45 matter. 00602_ Acquired Targeting Computer. 00604_ Acquired Core Shielding. 00615_ ALERT: Infestation in the mines, dispatching Demolisher response squad. 00644_ K-01 Serf collects debris. 00662_ R-06 Scavenger destroyed. 00663_ The unstable cave ceiling collapses. 00665_ as-31586 knocked back. 00668_ as-31586 destroyed. 00675_ Wheel destroyed. 00681_ as-94188 destroyed. Map ----- +----------------------------------------------------+ | | | | | | | | | | | | | | | | | | | | | | | | | | | | | ?????????????????????????????????????????????????? | | ?????????????????????????????????????????????????? | | ######?######????????????????????????????????????? | | # ###"! "##?????????####??????????????????????? | | ##""! ""#????????## ##?????????????????????? | | # ## #??####?## #?????????????????????? | | ## ### ##?## ### #?????????????????????? | | ## ####++###?# #?????????????????????? | | # =## ### #?????????????????????? | | %=%%## ## ##?????????????????????? | | ##%! ### #??????????????????????? | | ### % ##?#@#????###???????????????? | | #?##### ##??#%#???# ##??????????????? | | #????# ## ##??#a#### ###????????????? | | ### #### ##?# a ##????????????? | | #??# ### #????????????? | | ## #??# ####### ##????????????? | | ## #?## #?????# = ??????????? | | ?## #?## #?????? #%!# ???????? | | ??#### #### ##???????# =! #?????????? | | ?????####?# ##????????? *%#? ????????? | | ??????????# ####??????????? ?? ???????? | | ?????????# ##??????????????? = ?????????? | | ???????? ##???????????????? %! #????????? | | ?????? ####??????????????????! ????????? | | ?????# ##?????????????????????? ????????? | | ?????## #????????????????????????? ??????????? | | ??????######?????????????????????????????????????? | | ?????????????????????????????????????????????????? | | ?????????????????????????????????????????????????? | | ?????????????????????????????????????????????????? | | ?????????????????????????????????????????????????? | | ?????????????????????????????????????????????????? | | ?????????????????????????????????????????????????? | | ?????????????????????????????????????????????????? | | ?????????????????????????????????????????????????? | +----------------------------------------------------+ Best States ------------- Heat Dissipation 25 Energy Generation 10 Energy Capacity 125 Matter Stores 300 Matter Capacity 300 Sight Range 16 Terrain Scan Density 10 Evasion (%) 44 Item Schematics ----------------- None Robot Schematics ------------------ None Fabricated ------------ Nothing Repaired ---------- Nothing Studied --------- None Alien Tech Used ----------------- None Achievements -------------- None Challenges ------------ None Game ------ Seed OvertunedMicrowarpStripper Manual? 0 Play Time 00:10:59 Cumulative 82.6 hours Start 2025.10.22 @ 12:32:25 End 2025.10.22 @ 12:40:48 Sessions 1 Manual Loads 0 Difficulty Rogue Special Mode None Game No. 87 Rogue 87 Adventurer 0 Explorer 0 Win Type - Total 0 Types 0/0/0/0/0/0/0/0/0/0 Lore% 19 Gallery% 39 Achievement% 22 Wizard Run 0 Options --------- Layout 1 ASCII 0 Keyboard 0 Movement Numpad Keybinds 0 Fullscreen 1 Font 24/Smallcaps Map View 50x35 Zoom Use 0% Tactical HUD 1 Map Filters NONE Filters NONE Steam 1 RUN: 6a292ed5-09bd-4bf0-87a3-dab543b32197